bitfinex/quotes_SOLUSD_20250922
["timestamp","ask_amount","ask_price","bid_price","bid_amount"]
[1758502284146,31.2,232.34,232.18,31.2]
[1758502284449,31.2,232.37,232.32,6.01412062]
[1758502284638,31.2,232.37,232.15,20.0]
[1758502284834,31.2,232.37,232.34,6.01412062]
[1758502285147,31.2,232.37,232.2,6.01412062]
[1758502285456,41.78,232.4,232.36,6.01412062]
[1758502285754,41.78,232.4,232.39,6.01412062]
[1758502286637,41.78,232.4,232.25,31.2]
[1758502286638,41.78,232.4,232.26,20.0]
[1758502286838,72.98,232.4,232.39,6.01412062]
[1758502287155,73.66,232.4,232.23,31.2]
[1758502287347,72.98,232.4,232.23,31.2]
[1758502287541,41.78,232.4,232.39,6.01412062]
[1758502287739,42.46,232.4,232.39,6.01412062]
[1758502287922,41.78,232.4,232.24,4.30589045]
[1758502288131,41.78,232.4,232.39,6.01412062]
[1758502288441,21.86255343,232.67,232.39,6.01412062]
[1758502288442,0.68,232.44,232.39,6.01412062]
[1758502288626,41.58,232.44,232.43,6.01412062]
[1758502289135,0.68,232.49,232.43,6.01412062]
[1758502289334,0.68,232.48,232.47,6.01412062]
[1758502289868,41.54,232.5,232.47,6.01412062]
[1758502290162,0.68,232.49,232.32,35.50440771]
[1758502290468,41.54,232.5,232.32,55.50440771]
[1758502290624,0.68,232.49,232.28,31.2]
[1758502290830,31.2,232.47,232.28,31.2]
[1758502291146,31.2,232.47,232.46,6.01412062]
[1758502291327,41.54,232.5,232.46,6.01412062]
[1758502291528,41.54,232.5,232.31,31.2]
[1758502291529,41.54,232.5,232.49,6.01412062]
[1758502292035,0.68,232.5,232.37,31.2]
[1758502292467,31.2,232.46,232.25,4.30570505]
[1758502292642,31.2,232.46,232.45,6.01412062]
[1758502292844,31.88,232.46,232.3,31.2]
[1758502293050,31.88,232.46,232.44,6.01412062]
[1758502293239,31.2,232.46,232.44,6.01412062]
[1758502293443,32.0,232.49,232.44,6.01412062]
[1758502293648,31.32,232.49,232.48,6.01412062]
[1758502294653,0.68,232.58,232.48,6.01412062]
[1758502294969,41.38,232.55,232.37,20.0]
[1758502295148,41.38,232.55,232.4,31.2]
[1758502295551,41.38,232.55,232.35,20.0]
[1758502295552,0.68,232.54,232.35,35.50372964]
[1758502295737,0.68,232.54,232.35,55.50372964]
[1758502295936,0.68,232.54,232.53,6.01412062]
[1758502296147,41.38,232.55,232.53,6.01412062]
[1758502296678,0.1,232.8,232.53,6.01412062]
[1758502296679,0.68,232.67,232.53,6.01412062]
[1758502296976,31.88,232.67,232.66,6.01412062]
[1758502297174,31.2,232.67,232.66,6.01412062]
[1758502297344,0.68,232.67,232.66,6.01412062]
[1758502297539,0.68,232.67,232.48,4.30144528]
[1758502297738,0.68,232.66,232.45,31.2]
[1758502297942,0.68,232.66,232.61,6.01412062]
[1758502298159,0.68,232.66,232.63,6.01412062]
[1758502298763,0.68,232.65,232.63,6.01412062]
[1758502299061,0.68,232.64,232.61,6.01412062]
[1758502299270,31.88,232.67,232.49,31.2]
[1758502299561,31.2,232.66,232.57,6.01412062]
[1758502299741,31.2,232.65,232.57,6.01412062]
[1758502299938,0.68,232.65,232.61,6.01412062]
[1758502300139,0.68,232.64,232.56,6.01412062]
[1758502300442,0.68,232.63,232.45,35.50193266]
[1758502300641,31.2,232.65,232.57,6.01412062]
[1758502300642,41.74,232.62,232.57,6.01412062]
[1758502300837,31.2,232.6,232.59,6.01412062]
[1758502301264,31.88,232.6,232.44,31.2]
[1758502301450,31.88,232.59,232.35,4.30385194]
[1758502301774,31.2,232.55,232.48,6.01412062]
[1758502302059,0.68,232.59,232.37,20.0]
[1758502302258,41.0,232.58,232.42,31.2]
[1758502302462,41.0,232.58,232.56,6.01412062]
[1758502303464,31.2,232.55,232.37,20.0]
[1758502303637,31.2,232.55,232.49,6.01412062]
[1758502303845,0.68,232.54,232.49,6.01412062]
[1758502304044,0.68,232.53,232.49,6.01412062]
[1758502304249,0.68,232.53,232.38,46.26153713]
[1758502304447,0.68,232.53,232.5,6.01412062]
[1758502305043,31.2,232.55,232.38,31.2]
[1758502305246,31.2,232.55,232.51,6.01412062]
[1758502305451,0.68,232.54,232.53,6.01412062]
[1758502305747,41.0,232.58,232.53,6.01412062]
[1758502305946,41.0,232.58,232.57,6.01412062]
[1758502306665,0.68,232.64,232.57,6.01412062]
[1758502306666,40.78,232.64,232.57,6.01412062]
[1758502306865,40.78,232.64,232.48,31.2]
[1758502307070,40.78,232.64,232.6,6.01412062]
[1758502307242,40.78,232.64,232.48,31.2]
[1758502307438,40.78,232.64,232.62,6.01412062]
[1758502307642,40.78,232.64,232.48,31.2]
[1758502307643,40.78,232.64,232.48,35.50139252]
[1758502307867,41.46,232.64,232.5,31.2]
[1758502308067,41.46,232.64,232.59,6.01412062]
[1758502308270,0.68,232.63,232.57,6.01412062]
[1758502308481,0.68,232.63,232.56,6.01412062]
[1758502308682,0.68,232.63,232.57,6.01412062]
[1758502309048,0.68,232.63,232.48,35.50140234]
[1758502309252,0.68,232.63,232.56,6.01412062]
[1758502309554,40.78,232.64,232.46,4.30181536]
[1758502309555,31.2,232.61,232.46,4.30181536]
[1758502309789,31.2,232.61,232.55,6.01412062]
[1758502309945,40.78,232.64,232.59,6.01412062]
[1758502310144,0.68,232.66,232.61,6.01412062]
[1758502310448,40.62,232.65,232.63,6.01412062]
[1758502310685,0.68,232.73,232.57,31.2]
[1758502310967,0.68,232.75,232.71,6.01412062]
[1758502311168,0.82,232.74,232.71,6.01412062]
[1758502311355,0.82,232.74,232.56,20.0]
[1758502311554,0.68,232.73,232.68,6.01412062]
[1758502311770,0.68,232.72,232.53,20.0]
[1758502311998,1.8318121,232.72,232.63,6.01412062]
[1758502312155,0.68,232.71,232.52,31.2]
[1758502312355,31.2,232.69,232.6,6.01412062]
[1758502312556,1.1518121,232.68,232.6,6.01412062]
[1758502312754,1.1518121,232.68,232.62,6.01412062]
[1758502312959,1.1518121,232.68,232.5,20.0]
[1758502312960,0.68,232.7,232.64,6.01412062]
[1758502313160,1.83247291,232.7,232.66,6.01412062]
[1758502313361,40.52,232.69,232.57,31.2]
[1758502313560,0.68,232.75,232.69,6.01412062]
[1758502313775,0.68,232.75,232.72,6.01412062]
[1758502314274,0.68,232.74,232.59,31.2]
[1758502314469,1.15372478,232.76,232.56,4.29993854]
[1758502314667,1.15372478,232.76,232.66,4.83738513]
[1758502314668,31.88,232.73,232.66,4.83738513]
[1758502314847,1.15372478,232.72,232.68,4.83738513]
[1758502315054,1.15372478,232.72,232.54,10.75045911]
[1758502315055,0.68,232.71,232.66,4.83738513]
[1758502315264,31.2,232.69,232.52,4.30070531]
[1758502315469,1.83372478,232.68,232.41,20.0]
[1758502315705,4.83738513,232.63,232.45,4.30191356]
[1758502315864,3.45372478,232.62,232.45,4.30191356]
[1758502316177,31.2,232.6,232.53,4.83738513]
[1758502316370,1.15372478,232.59,232.55,4.83738513]
[1758502316574,0.68,232.58,232.39,20.0]
[1758502316960,0.68,232.58,232.52,4.83738513]
[1758502317361,1.15372478,232.58,232.52,4.83738513]
[1758502317689,1.15372478,232.57,232.55,4.83738513]
[1758502317860,33.52,232.62,232.55,4.83738513]
[1758502318051,1.15397759,232.61,232.55,4.83738513]
[1758502318256,1.15397759,232.61,232.41,15.05959295]
[1758502318480,32.35397759,232.61,232.41,15.05959295]
[1758502318680,1.15397759,232.6,232.56,5.39156919]
[1758502318852,40.34,232.62,232.58,5.39156919]
[1758502319253,40.34,232.62,232.6,5.39156919]
[1758502319684,40.34,232.66,232.6,5.39156919]
[1758502319877,0.7,232.69,232.54,31.2]
[1758502320070,0.7,232.69,232.65,5.39156919]
[1758502320273,21.71608708,232.74,232.67,5.39156919]
[1758502320488,21.71608708,232.74,232.61,31.2]
[1758502320489,1.15622652,232.73,232.61,31.2]
[1758502320705,40.28,232.77,232.72,5.39156919]
[1758502320994,0.1,232.8,232.66,31.2]
[1758502321168,0.1,232.8,232.7,31.2]
[1758502321369,0.1,232.8,232.72,51.2]
[1758502321598,0.1,232.8,232.78,31.2]
[1758502321764,0.1,232.8,232.79,35.49571716]
[1758502321965,0.1,232.8,232.79,9.68728635]
[1758502322993,0.1,232.8,232.79,5.39156919]
[1758502323295,0.7,232.97,232.81,31.2]
[1758502323586,0.7,232.97,232.84,5.39156919]
[1758502323790,0.8,233.01,232.84,9.68636389]
[1758502323991,1.02,233.01,232.84,5.39156919]
[1758502324163,0.7,232.96,232.84,5.39156919]
[1758502324787,1.02,233.01,232.84,5.39156919]
[1758502324788,0.7,232.92,232.84,5.39156919]
[1758502324992,0.7,232.97,232.84,5.39156919]
[1758502325189,0.7,232.91,232.84,5.39156919]
[1758502325364,0.7,232.91,232.72,20.0]
[1758502325571,0.7,232.91,232.84,5.39156919]
[1758502325976,0.8,232.85,232.71,20.0]
[1758502326273,31.3,232.85,232.65,20.0]
[1758502326481,0.7,232.84,232.76,5.39156919]
[1758502326711,0.7,232.84,232.66,20.0]
[1758502326712,0.7,232.84,232.78,5.39156919]
[1758502327031,0.1,232.85,232.82,5.39156919]
[1758502327181,0.79,232.85,232.82,5.39156919]
[1758502327709,0.1,232.85,232.82,5.39156919]
[1758502327905,0.79,232.85,232.82,5.39156919]
[1758502328107,0.79,232.85,232.7,36.59156919]
[1758502328108,0.1,232.85,232.84,5.39156919]
[1758502328618,0.1,232.85,232.77,31.2]
[1758502328785,0.1,232.85,232.84,5.39156919]
[1758502329684,0.1,232.86,232.84,5.39156919]
[1758502329900,0.1,232.86,232.85,4.29461026]
[1758502330408,0.1,232.86,232.84,5.39156919]
[1758502331892,0.1,232.86,232.74,20.0]
[1758502332104,0.79,232.86,232.71,40.0]
[1758502332308,0.79,232.86,232.83,5.39156919]
[1758502332490,0.79,232.86,232.71,44.29719393]
[1758502332688,0.79,232.86,232.83,5.39156919]
[1758502332920,0.1,232.86,232.85,5.39156919]
[1758502335000,0.79,232.86,232.74,31.2]
[1758502335223,0.79,232.86,232.69,4.29742179]
[1758502335532,0.1,232.86,232.72,31.2]
[1758502335703,0.1,232.86,232.76,51.2]
[1758502336092,0.1,232.86,232.81,31.2]
[1758502336291,0.1,232.86,232.85,5.39156919]
[1758502336789,0.1,232.86,232.76,4.29609786]
[1758502337112,0.79,232.86,232.81,5.39156919]
[1758502337299,0.69,232.85,232.79,5.39156919]
[1758502337613,0.69,232.85,232.77,5.39156919]
[1758502337817,0.69,232.85,232.81,5.39156919]
[1758502337991,0.69,232.85,232.79,5.39156919]
[1758502338506,5.39156919,232.83,232.65,4.29826386]
[1758502338709,0.69,232.82,232.65,4.29826386]
[1758502339020,0.69,232.85,232.81,5.39156919]
[1758502339197,0.69,232.84,232.83,5.39156919]
[1758502339712,0.69,232.84,232.69,31.2]
[1758502339921,0.69,232.84,232.81,5.39156919]
[1758502340119,0.1,232.86,232.83,5.39156919]
[1758502340417,0.1,232.86,232.74,31.2]
[1758502340612,0.1,232.86,232.73,31.2]
[1758502340816,0.1,232.86,232.75,31.2]
[1758502340817,0.79,232.86,232.75,31.2]
[1758502341605,0.69,232.85,232.7,31.2]
[1758502341821,0.69,232.85,232.81,5.39156919]
[1758502342226,0.69,232.84,232.83,5.39156919]
[1758502342398,0.69,232.84,232.7,31.2]
[1758502342601,0.69,232.84,232.81,5.39156919]
[1758502343008,0.69,232.83,232.81,5.39156919]
[1758502343317,0.69,232.82,232.81,5.39156919]
[1758502343512,0.79,232.86,232.81,5.39156919]
[1758502343828,0.79,232.86,232.71,31.2]
[1758502343829,0.1,232.86,232.84,5.39156919]
[1758502345231,0.1,232.86,232.84,9.68632084]
[1758502345404,0.1,232.89,232.88,31.2]
[1758502345606,0.1,232.89,232.88,36.59156919]
[1758502346228,0.1,232.89,232.85,39.74]
[1758502346433,0.1,232.89,232.88,5.39156919]
[1758502347749,0.1,232.89,232.88,36.59156919]
[1758502348045,0.81,233.01,232.88,5.39156919]
[1758502348340,0.1,233.01,233.0,5.39156919]
[1758502348712,0.1,233.01,233.0,36.59156919]
[1758502350604,0.1,233.01,233.0,5.39156919]
[1758502352907,0.1,233.01,232.95,31.2]
[1758502353105,0.71,233.0,232.95,31.2]
[1758502353306,0.71,232.99,232.88,39.52]
[1758502353505,0.71,232.99,232.8,4.29553264]
[1758502353506,0.71,232.99,232.96,5.39156919]
[1758502353706,0.71,232.99,232.9,31.2]
[1758502353707,0.71,232.99,232.98,5.39156919]
[1758502354306,0.1,233.01,232.98,5.39156919]
[1758502354504,0.1,233.01,232.91,31.2]
[1758502354505,0.1,233.01,232.96,3.30408874]
[1758502354749,0.1,233.01,233.0,3.30408874]
[1758502359842,0.81,233.01,233.0,3.30408874]
[1758502360060,0.1,233.01,233.0,3.30408874]
[1758502360824,0.1,233.01,233.0,34.50408874]
[1758502361219,0.1,233.01,233.0,3.30408874]
[1758502362519,0.1,233.01,233.0,34.50408874]
[1758502362716,0.1,233.01,233.0,31.2]
[1758502362944,0.1,233.01,233.0,34.50408874]
[1758502363655,0.1,233.06,233.02,31.2]
[1758502363822,0.1,233.06,233.05,3.30408874]
[1758502364151,0.1,233.13,233.08,31.2]
[1758502364360,0.1,233.13,233.11,3.30408874]
[1758502364747,0.1,233.13,233.11,7.59383034]
[1758502365264,0.1,233.13,233.08,31.2]
[1758502365265,0.1,233.13,233.08,39.3]
[1758502365424,0.1,233.13,233.01,31.2]
[1758502365425,0.1,233.13,233.12,3.30408874]
[1758502365862,0.1,233.13,233.07,70.48]
[1758502366155,0.1,233.13,231.73,57.2355603]
[1758502366156,0.71,233.12,233.04,31.2]
[1758502366327,0.71,233.12,233.08,3.30408874]
[1758502366528,0.71,233.11,233.08,3.30408874]
[1758502366758,0.71,233.1,233.07,3.30408874]
[1758502367127,0.71,233.09,233.07,3.30408874]
[1758502367848,0.71,233.09,233.08,3.30408874]
[1758502368735,0.71,233.12,233.08,3.30408874]
[1758502368936,0.71,233.11,233.08,3.30408874]
[1758502369455,0.1,233.13,233.1,3.30408874]
[1758502369657,0.1,233.13,233.12,3.30408874]
[1758502369961,0.1,233.13,233.12,34.50408874]
[1758502370958,0.1,233.13,233.12,38.79372497]
[1758502371164,0.1,233.13,233.12,34.50408874]
[1758502371353,0.1,233.13,233.12,3.30408874]
[1758502373449,0.1,233.13,233.12,42.24408874]
[1758502373732,0.1,233.13,233.12,31.2]
[1758502373938,0.1,233.13,233.12,38.79372497]
[1758502374167,0.1,233.13,233.12,3.30408874]
[1758502375244,0.1,233.13,233.12,34.50408874]
[1758502375648,0.1,233.13,233.12,31.2]
[1758502375853,0.1,233.13,233.12,3.30408874]
[1758502376147,0.1,233.13,233.1,31.2]
[1758502376349,0.1,233.13,233.12,3.30408874]
[1758502378462,0.1,233.13,233.11,35.48979351]
[1758502378761,0.1,233.13,233.12,3.30408874]
[1758502379673,0.1,233.13,233.12,42.02408874]
[1758502379850,0.1,233.13,233.12,38.72]
[1758502380047,0.1,233.13,233.12,42.02408874]
[1758502380449,0.1,233.13,233.12,41.98408874]
[1758502380648,0.1,233.13,233.12,48.31001208]
[1758502381464,0.1,233.18,233.17,4.81500604]
[1758502381669,0.1,233.18,233.17,43.47500604]
[1758502382773,0.1,233.18,233.17,4.81500604]
[1758502382957,0.1,233.18,233.17,47.76372242]
[1758502383356,0.1,233.18,233.17,9.10372242]
[1758502383967,0.1,233.18,233.05,35.01823642]
[1758502384276,0.1,233.18,233.17,4.81500604]
[1758502385278,0.1,233.18,233.17,40.30372242]
[1758502385869,0.1,233.24,233.19,31.2]
[1758502386168,0.1,233.24,233.23,4.81500604]
[1758502386680,0.1,233.24,233.23,36.01500604]
[1758502387671,0.1,233.24,233.13,31.2]
[1758502387870,0.1,233.24,233.22,4.81500604]
[1758502388260,0.1,233.24,233.17,38.64]
[1758502388261,0.1,233.24,233.17,31.2]
[1758502388463,0.1,233.24,233.16,4.81500604]
[1758502388856,4.81500604,233.23,233.14,4.81500604]
[1758502389175,0.1,233.24,233.1,4.81500604]
[1758502389176,4.81500604,233.19,233.1,4.81500604]
[1758502389371,0.1,233.24,233.18,4.81500604]
[1758502389565,0.1,233.24,233.23,4.81500604]
[1758502389964,0.1,233.24,233.15,31.2]
[1758502390260,0.1,233.24,233.12,4.81500604]
[1758502390261,0.1,233.24,233.23,4.81500604]
[1758502390464,0.1,233.24,233.19,31.2]
[1758502390655,0.1,233.24,233.16,38.64]
[1758502390656,0.1,233.24,233.1,31.2]
[1758502390852,0.1,233.24,233.15,31.2]
[1758502391057,4.81500604,233.22,233.06,15.01759203]
[1758502391282,4.81500604,233.2,233.1,4.81500604]
[1758502391478,4.81500604,233.2,233.06,4.29074058]
[1758502391479,4.81500604,233.22,233.12,4.81500604]
[1758502391658,4.81500604,233.23,233.14,4.81500604]
[1758502391855,0.1,233.24,233.06,15.01759203]
[1758502392168,0.1,233.24,233.09,31.2]
[1758502392363,4.81500604,233.23,233.14,4.81500604]
[1758502392563,0.1,233.24,233.14,4.81500604]
[1758502392761,4.81500604,233.23,233.14,4.81500604]
[1758502393587,4.81500604,233.15,232.97,4.29233152]
[1758502393760,4.81500604,233.15,233.06,4.81500604]
[1758502394081,4.81500604,233.15,232.92,20.0]
[1758502394082,31.2,233.16,232.96,4.29251546]
[1758502394392,31.2,233.16,233.03,4.81500604]
[1758502394692,31.2,233.13,232.99,31.2]
[1758502394854,31.2,233.13,232.99,30.41500604]
[1758502395057,31.2,233.13,233.07,4.81500604]
[1758502395272,31.2,233.13,233.06,4.81500604]
[1758502395455,31.2,233.13,233.05,4.81500604]
[1758502395655,4.81500604,233.12,232.89,0.2]
[1758502395876,4.81500604,233.12,233.03,4.81500604]
[1758502396059,4.81500604,233.12,233.02,4.81500604]
[1758502396262,4.81500604,233.1,233.02,4.81500604]
[1758502397556,4.81500604,233.1,233.0,4.81500604]
[1758502397958,4.81500604,233.1,232.89,0.2]
[1758502397959,4.81500604,233.06,232.89,0.2]
[1758502398182,4.81500604,233.06,232.97,4.81500604]
[1758502398390,31.2,233.05,232.97,4.81500604]
[1758502400796,31.2,233.07,233.03,4.81500604]
[1758502401593,4.81500604,233.18,233.06,4.81500604]
[1758502401756,4.81500604,233.18,233.09,4.81500604]
[1758502401960,31.2,233.14,233.0,31.2]
[1758502402164,31.2,233.14,233.07,4.81500604]
[1758502402364,132.2,233.13,233.07,4.81500604]
[1758502402802,132.2,233.13,233.09,4.81500604]
[1758502403365,132.2,233.13,233.03,4.29120417]
[1758502403671,132.2,233.13,233.08,4.81500604]
[1758502404495,170.84,233.13,233.08,4.81500604]
[1758502404689,31.2,233.1,232.96,4.81500604]
[1758502405016,36.01500604,233.1,233.02,4.81500604]
[1758502405307,132.2,233.09,233.02,4.81500604]
[1758502405505,132.2,233.08,233.02,4.81500604]
[1758502405792,132.2,233.08,232.9,4.29368827]
[1758502405996,132.2,233.08,233.01,4.81500604]
[1758502406568,4.81500604,233.06,232.89,0.2]
[1758502406870,36.01500604,233.02,232.89,4.49378059]
[1758502407190,39.34,233.01,232.95,4.81500604]
[1758502407496,39.34,233.01,232.91,4.29349143]
[1758502407681,0.7,233.0,232.95,4.81500604]
[1758502407871,0.7,232.99,232.95,4.81500604]
[1758502408076,0.7,232.98,232.93,4.81500604]
[1758502409000,0.7,232.98,232.89,0.2]
[1758502409001,0.7,232.98,232.95,4.81500604]
[1758502410522,4.81500604,233.12,232.89,0.2]
[1758502410523,0.7,232.97,232.89,0.2]
[1758502410694,0.7,232.97,232.93,4.81500604]
[1758502410894,0.7,232.97,232.95,4.81500604]
[1758502412231,0.7,232.99,232.95,4.81500604]
[1758502412521,0.7,232.98,232.95,4.81500604]
[1758502412812,0.7,232.97,232.95,4.81500604]
[1758502413197,0.7,232.97,232.9,4.29368827]
[1758502413400,0.7,232.96,232.89,5.01500604]
[1758502413610,4.81500604,232.94,232.89,0.2]
[1758502414122,5.51500604,232.93,232.89,0.2]
[1758502414324,0.7,232.93,232.89,0.2]
[1758502414489,0.7,232.92,232.89,0.2]
[1758502414689,0.7,232.91,232.89,0.2]
[1758502414912,38.62,232.95,232.9,4.81500604]
[1758502414913,0.7,232.95,232.9,4.81500604]
[1758502415217,38.62,232.96,232.93,4.81500604]
[1758502415425,0.7,232.95,232.93,4.81500604]
[1758502416288,0.7,232.94,232.93,4.81500604]
[1758502416491,0.7,232.94,232.89,4.49385939]
[1758502416711,0.7,232.94,232.93,4.81500604]
[1758502416895,0.7,232.97,232.93,4.81500604]
[1758502417085,0.7,232.96,232.93,4.81500604]
[1758502417284,0.7,232.95,232.93,4.81500604]
[1758502417518,38.62,232.97,232.93,4.81500604]
[1758502417719,0.7,232.96,232.93,4.81500604]
[1758502417887,0.7,232.95,232.93,4.81500604]
[1758502418087,0.7,232.94,232.89,0.2]
[1758502418319,0.7,232.93,232.89,0.2]
[1758502419110,0.7,232.92,232.89,0.2]
[1758502419304,0.7,232.91,232.89,0.2]
[1758502419506,39.3,232.95,232.9,4.81500604]
[1758502419703,0.7,232.94,232.9,4.81500604]
[1758502419915,0.7,232.93,232.9,4.81500604]
[1758502420327,31.2,232.97,232.9,4.81500604]
[1758502420504,38.6,232.96,232.92,4.81500604]
[1758502420697,0.7,232.96,232.92,4.81500604]
[1758502420904,31.2,232.97,232.94,4.81500604]
[1758502420905,69.8,232.97,232.94,4.81500604]
[1758502421110,70.5,232.97,232.94,4.81500604]
[1758502421935,0.7,232.96,232.89,0.2]
[1758502422098,39.3,232.96,232.89,5.01500604]
[1758502422512,31.2,232.99,232.93,4.81500604]
[1758502422920,31.2,232.98,232.93,4.81500604]
[1758502423341,31.2,232.98,232.94,4.81500604]
[1758502423342,31.9,232.98,232.94,4.81500604]
[1758502423501,0.7,232.98,232.94,4.81500604]
[1758502423700,31.2,232.99,232.96,4.81500604]
[1758502424011,0.7,233.03,232.95,4.29276668]
[1758502424012,39.3,233.03,232.98,4.81500604]
[1758502424216,0.7,233.02,232.98,4.81500604]
[1758502424510,0.7,233.02,232.95,15.0246834]
[1758502424511,0.7,233.02,233.0,4.81500604]
[1758502425047,38.6,233.04,233.0,4.81500604]
[1758502425553,0.7,233.04,233.0,4.81500604]
[1758502426724,0.7,233.03,232.94,41.93237743]
[1758502426949,0.7,233.03,233.0,4.81500604]
[1758502427251,38.58,233.05,233.02,4.81500604]
[1758502427414,39.28,233.05,233.02,4.81500604]
[1758502427612,0.7,233.04,233.02,4.81500604]
[1758502427832,0.7,233.03,233.02,4.81500604]
[1758502428039,38.58,233.05,232.96,4.29258241]
[1758502428377,39.28,233.05,233.02,4.81500604]
[1758502428533,0.7,233.04,233.02,4.81500604]
[1758502429621,38.58,233.06,232.96,15.02403845]
[1758502429832,31.2,233.06,233.05,4.81500604]
[1758502430135,31.2,233.06,233.02,4.29144737]
[1758502430329,31.2,233.06,233.05,4.81500604]
[1758502430747,31.9,233.06,233.05,4.81500604]
[1758502430949,31.2,233.06,233.05,4.81500604]
[1758502431152,38.56,233.08,233.05,4.81500604]
[1758502431453,0.7,233.06,233.05,4.81500604]
[1758502432245,38.56,233.08,233.05,4.81500604]
[1758502432451,39.26,233.08,233.05,4.81500604]
[1758502432636,39.26,233.08,233.07,4.81500604]
[1758502433042,0.7,233.12,233.07,4.81500604]
[1758502433251,0.7,233.12,233.11,4.81500604]
[1758502433537,31.9,233.12,233.11,4.81500604]
[1758502434037,39.24,233.16,233.11,4.81500604]
[1758502434269,0.7,233.15,233.11,4.81500604]
[1758502434560,0.7,233.14,233.11,4.81500604]
[1758502434965,0.7,233.13,233.12,4.81500604]
[1758502435353,0.7,233.15,233.12,4.81500604]
[1758502435666,0.7,233.14,233.03,4.29129296]
[1758502435897,0.1,233.23,232.99,31.2]
[1758502435898,0.1,233.23,233.12,4.81500604]
[1758502436050,4.81500604,233.19,232.92,20.0]
[1758502436242,31.2,233.15,232.96,36.01500604]
[1758502436562,31.2,233.15,233.08,4.81500604]
[1758502436563,36.72,233.14,233.08,4.81500604]
[1758502436868,31.2,233.11,233.05,4.81500604]
[1758502437036,31.2,233.11,232.95,38.52]
[1758502437037,0.71,233.1,233.01,4.81500604]
[1758502437241,75.24500604,233.09,233.0,4.81500604]
[1758502437442,171.43,233.08,233.0,4.81500604]
[1758502437740,0.71,233.07,232.94,31.2]
[1758502437955,31.2,233.05,232.98,4.81500604]
[1758502438165,0.71,233.04,232.91,10.73375982]
[1758502438339,0.71,233.04,232.99,4.81500604]
[1758502438544,0.71,233.04,232.93,4.29307241]
[1758502438747,31.2,233.03,232.97,4.81500604]
[1758502438934,31.2,233.03,232.74,55.80333163]
[1758502438935,0.71,233.02,232.9,4.29367042]
[1758502439140,0.71,233.01,232.94,4.81500604]
[1758502439340,0.71,233.01,232.9,4.29367042]
[1758502439661,0.71,233.01,232.95,4.81500604]
[1758502439863,31.91,233.0,232.81,10.73803102]
[1758502440076,4.81500604,232.97,232.88,4.81500604]
[1758502440264,39.21,232.96,232.88,4.81500604]
[1758502440595,31.2,232.93,232.78,4.29574813]
[1758502440760,31.2,232.93,232.85,4.81500604]
[1758502440962,31.91,232.92,232.87,4.81500604]
[1758502441174,38.5,232.91,232.87,4.81500604]
[1758502441372,39.21,232.91,232.87,4.81500604]
[1758502441577,0.71,232.9,232.87,4.81500604]
[1758502441770,0.71,232.9,232.82,0.2]
[1758502441966,0.71,232.9,232.83,4.81500604]
[1758502441967,31.2,232.88,232.83,4.81500604]
[1758502442183,0.71,232.87,232.82,0.2]
[1758502442379,70.41,232.86,232.82,0.2]
[1758502442582,39.21,232.85,232.82,0.2]
[1758502443077,0.71,232.84,232.82,0.2]
[1758502443588,31.91,232.83,232.82,0.2]
[1758502444260,0.71,232.88,232.82,3.51117087]